fUSD/lending_fUSD_20241022
["ID","MTS","AMOUNT","RATE_DAILY","PERIOD"]
[340666980,1729617080333,-179.476136,0.00056986,120]
[340666981,1729617080342,-500.0,0.00056986,120]
[340666982,1729617080352,-477.7530198,0.00056986,120]
[340666983,1729617080361,-355.52,0.00056986,120]
[340666984,1729617080371,-811.09,0.00056986,120]
[340666985,1729617080383,-500.0,0.00056986,120]
[340666986,1729617080392,-500.0,0.00056986,120]
[340666987,1729617080402,-500.0,0.00056986,120]
[340666988,1729617080411,-500.0,0.00056986,120]
[340666989,1729617080421,-500.0,0.00056986,120]
[340666990,1729617080431,-500.0,0.00056986,120]
[340666991,1729617080441,-781.92,0.00056986,120]
[340666992,1729617080450,-500.0,0.00056986,120]
[340666993,1729617080460,-610.74,0.00056986,120]
[340666994,1729617080470,-500.0,0.00056986,120]
[340666995,1729617080480,-500.0,0.00056986,120]
[340666996,1729617080489,-500.0,0.00056986,120]
[340666997,1729617080499,-500.0,0.00056986,120]
[340666998,1729617080509,-655.98,0.00056986,120]
[340666999,1729617080518,-1351.58,0.00056986,120]
[340667000,1729617080528,-500.0,0.00056986,120]
[340667001,1729617080538,-537.71,0.00056986,120]
[340667002,1729617080548,-500.0,0.00056986,120]
[340667003,1729617080557,-500.0,0.00056986,120]
[340667004,1729617080567,-500.0,0.00056986,120]
[340667005,1729617080577,-500.0,0.00056986,120]
[340667006,1729617080586,-500.0,0.00056986,120]
[340667007,1729617080600,-3500.0,0.00056986,120]
[340667008,1729617080609,-524.45,0.00056986,120]
[340667009,1729617080618,-500.0,0.00056986,120]
[340667010,1729617080628,-500.0,0.00056986,120]
[340667011,1729617080638,-151.0,0.00056986,120]
[340667012,1729617080648,-500.0,0.00056986,120]
[340667013,1729617080657,-547.19508642,0.00056986,120]
[340667014,1729617080667,-500.0,0.00056986,120]
[340667015,1729617080677,-500.0,0.00056986,120]
[340667016,1729617080686,-500.0,0.00056986,120]
[340667017,1729617080696,-500.0,0.00056986,120]
[340667018,1729617080705,-500.0,0.00056986,120]
[340667019,1729617080714,-1045.25,0.00056986,120]
[340667020,1729617080723,-500.0,0.00056986,120]
[340667021,1729617080733,-500.0,0.00056986,120]
[340667022,1729617080742,-500.0,0.00056986,120]
[340667023,1729617080752,-500.0,0.00056986,120]
[340667024,1729617080762,-500.0,0.00056986,120]
[340667025,1729617080771,-500.0,0.00056986,120]
[340667026,1729617080781,-500.0,0.00056986,120]
[340667027,1729617080790,-642.94253011,0.00056986,120]
[340667028,1729617080800,-653.9,0.00056986,30]
[340667029,1729617080810,-500.0,0.00056986,120]
[340667030,1729617080820,-500.0,0.00056986,120]
[340667031,1729617080830,-500.0,0.00056986,120]
[340667032,1729617080839,-500.0,0.00056986,120]
[340667033,1729617080849,-500.0,0.00056986,120]
[340667034,1729617080858,-500.0,0.00056986,120]
[340667035,1729617080867,-577.27427305,0.00056986,120]
[340667036,1729617080876,-500.0,0.00056986,120]
[340667037,1729617080889,-500.0,0.00056986,120]
[340667038,1729617080898,-204.124173,0.00056986,120]
[340667039,1729617080907,-500.0,0.00056986,120]
[340667040,1729617080917,-500.0,0.00056986,120]
[340667041,1729617080926,-383.65700453,0.00056986,120]
[340667042,1729617081239,-204.63729832,0.00056986,120]
[340667043,1729617081249,-500.0,0.00056986,120]
[340667044,1729617081260,-204.124173,0.00056986,120]
[340667045,1729617081270,-376.20342704,0.00056986,120]
[340667046,1729617081282,-123.79657296,0.00056986,120]
[340667047,1729617081292,-300.0,0.00056986,120]
[340667048,1729617081302,-2949.68,0.00056986,120]
[340667049,1729617081312,-500.0,0.00056986,120]
[340667050,1729617081321,-151.0,0.00056986,120]
[340667051,1729617081331,-500.0,0.00056986,120]
[340667052,1729617081343,-500.0,0.00056986,120]
[340667053,1729617081354,-627.4561279,0.00056986,120]
[340667054,1729617081364,-500.0,0.00056986,2]
[340667055,1729617081374,-740.711255,0.00056986,120]
[340667056,1729617081385,-500.0,0.00056986,120]
[340667057,1729617081395,-500.0,0.00056986,120]
[340667058,1729617081404,-500.0,0.00056986,120]
[340667059,1729617081414,-740.711255,0.00056986,120]
[340667060,1729617081423,-500.0,0.00056986,120]
[340667061,1729617081433,-500.0,0.00056986,120]
[340667062,1729617081442,-500.0,0.00056986,120]
[340667063,1729617081451,-500.0,0.00056986,120]
[340667064,1729617081461,-500.0,0.00056986,120]
[340667065,1729617081470,-500.0,0.00056986,120]
[340667066,1729617081480,-500.0,0.00056986,120]
[340667067,1729617081489,-605.95,0.00056986,120]
[340667068,1729617081499,-632.97809763,0.00056986,120]
[340667069,1729617081509,-500.0,0.00056986,120]
[340667070,1729617081519,-568.52,0.00056986,120]
[340667071,1729617081528,-500.0,0.00056986,120]
[340667072,1729617081538,-500.0,0.00056986,120]
[340667073,1729617081547,-500.0,0.00056986,120]
[340667074,1729617081557,-500.0,0.00056986,120]
[340667075,1729617081567,-526.83,0.00056986,120]
[340667076,1729617081576,-500.0,0.00056986,120]
[340667077,1729617081585,-500.0,0.00056986,120]
[340667078,1729617081599,-500.0,0.00056986,120]
[340667079,1729617081608,-557.28,0.00056986,120]
[340667080,1729617081617,-500.0,0.00056986,120]
[340667081,1729617081627,-296.02513,0.00056986,120]
[340667082,1729617081638,-500.0,0.00056986,120]
[340667083,1729617081647,-500.0,0.00056986,120]
[340667084,1729617081657,-351.553744,0.00056986,120]
[340667085,1729617081667,-296.02513,0.00056986,120]
[340667086,1729617081676,-500.0,0.00056986,120]
[340667087,1729617081687,-11764.20815626,0.00057,30]
[340667088,1729617081698,-1840.87450557,0.00057,30]
[340667089,1729617081718,-531.56201883,0.00057,30]
[340667091,1729618090461,900.0,0.000104,3]
[340667092,1729618092571,1800.0,0.000105,3]
[340667093,1729618094682,2700.0,0.000106,3]
[340667095,1729618096781,3700.0,0.000107,3]
[340667097,1729618098460,-3442.812425,0.00010804,2]
[340667098,1729618098483,-250.0,0.00010859,2]
[340667099,1729618098506,-856.68,0.00010959,2]
[340667100,1729618098529,-261485.67475006,0.0001099,2]
[340667101,1729618098552,-150.0,0.00010999,2]
[340667102,1729618098576,-588.34426112,0.00010999,2]
[340667103,1729618098600,-500.0,0.00010999,2]
[340667104,1729618098625,-500.0,0.00010999,2]
[340667105,1729618098651,-611.04359272,0.00010999,2]
[340667106,1729618098674,-500.0,0.00010999,2]
[340667107,1729618098698,-500.0,0.00010999,2]
[340667108,1729618098722,-500.0,0.00010999,2]
[340667109,1729618098747,-512.19051634,0.00010999,2]
[340667110,1729618098777,-729603.25445476,0.00011,2]
[340667111,1729618098886,4600.0,0.000108,3]
[340667112,1729618100986,900.0,0.000109,3]
[340667113,1729618107605,250.0,0.0001,2]
[340667115,1729618130570,2800.0,0.000104,3]
[340667116,1729618131017,-150.0,0.00010894,2]
[340667117,1729618131041,-262.47127001,0.000109,2]
[340667118,1729618131068,-49587.52872999,0.00011,2]
[340667119,1729618131836,-50000.0,0.00011,2]
[340667120,1729618132389,-50000.0,0.00011,2]
[340667121,1729618132662,5600.0,0.000105,3]
[340667122,1729618133192,-50000.0,0.00011,2]
[340667123,1729618133947,-50000.0,0.00011,2]
[340667124,1729618134668,-50000.0,0.00011,2]
[340667125,1729618134787,2266.68259584,0.000106,3]
[340667126,1729618134816,6233.31740416,0.000106,3]
[340667127,1729618135411,-50000.0,0.00011,2]
[340667128,1729618136382,-50000.0,0.00011,2]
[340667129,1729618137022,11300.0,0.000107,3]
[340667130,1729618137062,-50000.0,0.00011,2]
[340667131,1729618137749,-50000.0,0.00011,2]
[340667132,1729618138581,-50000.0,0.00011,2]
[340667133,1729618139025,14100.0,0.000108,3]
[340667134,1729618139387,-50000.0,0.00011,2]
[340667135,1729618140187,-50000.0,0.00011,2]
[340667136,1729618140966,-50000.0,0.00011,2]
[340667137,1729618141159,2800.0,0.000109,3]
[340667138,1729618141833,-50000.0,0.00011,2]
[340667139,1729618142784,-50000.0,0.00011,2]
[340667140,1729618143887,-50000.0,0.00011,2]
[340667141,1729618144644,-50000.0,0.00011,2]
[340667142,1729618145551,-50000.0,0.00011,2]
[340667165,1729618231915,-302.4251,0.0001089,2]
[340667167,1729618231925,-816.42305518,0.000109,2]
[340667169,1729618231936,-464.3739934,0.00010973,2]
[340667171,1729618231946,-361.1790091,0.00011,2]
[340667175,1729618231976,-18404.02422153,0.00011,2]
[340667177,1729618232094,-585.22,0.00011,2]
[340667178,1729618232105,-664.80350199,0.00011,2]
[340667179,1729618232146,-52119.13839339,0.00011,2]
[340667180,1729618232158,-353.43736124,0.00011,2]
[340667181,1729618232169,-580.87891067,0.00011,2]
[340667182,1729618232181,-391812.99724939,0.00011,2]
[340667183,1729618232193,-5905.61785603,0.00011,2]
[340667184,1729618232204,-354241.46436315,0.00011,2]
[340667185,1729618232238,-689.30241408,0.00011,2]
[340667195,1729618237988,-510.4542608,0.00011,2]
[340667198,1729618238102,-10608.99857448,0.00011,2]
[340667199,1729618238114,-977.77687236,0.00011,2]
[340667200,1729618238215,-5967.78085889,0.00011,2]
[340667201,1729618238227,-529.44,0.00011,2]
[340667219,1729618239878,-1705.47,0.00011,2]
[340667221,1729618240064,-27559.23028698,0.00011,2]
[340667222,1729618240080,-60978.57451615,0.00011,2]
[340667223,1729618240091,-2399.999999,0.00011,2]
[340667224,1729618240112,-3819.29267425,0.00011,2]
[340667225,1729618240126,-1143.320003,0.00011,2]
[340667226,1729618240138,-5721.0,0.00011,2]
[340667227,1729618240150,-14746.24999068,0.00011,2]
[340667228,1729618240166,-2777.300002,0.00011,2]
[340667229,1729618240188,-142848.97982861,0.00011,2]
[340667230,1729618240199,-780.02769734,0.00011,2]
[340667231,1729618240218,-1108.2439701,0.00011,2]
[340667232,1729618240229,-2287.92,0.00011,2]
[340667312,1729618243378,-541.92539657,0.00011,2]
[340667313,1729618243389,-697.68583,0.00011,2]
[340667316,1729618243401,-720.02828238,0.00011,2]
[340667319,1729618243412,-502.49912,0.00011,2]
[340667320,1729618243423,-5363.54348783,0.00011,2]
[340667321,1729618243434,-858.6849167,0.00011,2]
[340667322,1729618243451,-31038.828504,0.00011,2]
[340667323,1729618243462,-929.96123073,0.00011,2]
[340667324,1729618243474,-1163.11877604,0.00011,2]
[340667325,1729618244974,-11017.7906506,0.00011,2]
[340667326,1729618244986,-1308.00000413,0.00011,2]
[340667333,1729618245891,-62084.24849883,0.00011,2]
[340667334,1729618246009,-11062.11061774,0.00011,2]
[340667335,1729618246076,-2329.08687198,0.00011,2]
[340667336,1729618246091,-5752.5030611,0.00011,2]
[340667337,1729618246134,-100494.01785308,0.00011,2]
[340667338,1729618246146,-6250.52796977,0.00011,2]
[340667339,1729618246157,-308.1,0.00011,2]
[340667340,1729618246169,-10064.97677055,0.00011,2]
[340667361,1729618890486,-160.77206183,0.000108,2]
[340667362,1729618890520,-150.0,0.00010899,2]
[340667363,1729618890555,-189.45587634,0.00010899,2]
[340667364,1729619241241,700.0,0.000105,3]
[340667365,1729619243806,1500.0,0.000106,3]
[340667366,1729619245500,2300.0,0.000107,3]
[340667367,1729619247987,3100.0,0.000108,3]
[340667368,1729619250352,3800.0,0.000109,3]
[340667382,1729619432235,-554.19687873,0.00010899,2]
[340667383,1729619432247,-300.0,0.00010899,2]
[340667384,1729619432257,-12611.56745539,0.00010899,2]
[340667385,1729619432266,-181.81658536,0.000109,2]
[340667386,1729619432275,-1344.6763,0.000109,2]
[340667387,1729619432284,-47989.26124933,0.000109,2]
[340667388,1729619432539,-295.6043219,0.000109,2]
[340667389,1729619432638,-303.4456781,0.000109,2]
[340667391,1729619438348,-22.36505067,0.000109,2]
[340667392,1729619438358,-177.34935106,0.000109,2]
[340667393,1729619438367,-1000.0,0.000109,2]
[340667394,1729619438377,-405.6174,0.000109,2]
[340667395,1729619438386,-37664.672,0.000109,2]
[340667396,1729619438395,-100000.0,0.000109,2]
[340667397,1729619438403,-92677.6629,0.000109,2]
[340667398,1729619438413,-11527.1382,0.000109,2]
[340667399,1729619438422,-1000.0,0.000109,2]
[340667400,1729619438431,-15448.40723012,0.000109,2]
[340667401,1729619438441,-544.28203678,0.000109,2]
[340667402,1729619438450,-498.02006,0.00010973,2]
[340667403,1729619438459,-411.84098278,0.00010999,2]
[340667404,1729619438468,-402.58156767,0.00010999,2]
[340667405,1729619438479,-369091.51176236,0.00011,2]
[340667406,1729619438493,-557178.90901353,0.00011,2]
[340667407,1729619438505,-119803.1125,0.00011,2]
[340667408,1729619438517,-127014.67450056,0.00011,2]
[340667409,1729619438559,-5146.02669942,0.00011,2]
[340667410,1729619438570,-8714.25382459,0.00011,2]
[340667411,1729619438597,-284.81021248,0.00011,2]
[340667415,1729619440178,-2378.77886085,0.00011,2]
[340667416,1729619440189,-20410.21731038,0.00011,2]
[340667417,1729619440269,-93596.39382317,0.00011,2]
[340667418,1729619440363,-500.0,0.000109,2]
[340667419,1729619440373,-9840.9406,0.00011,2]
[340667420,1729619440385,-3440.798413,0.00011,2]
[340667421,1729619440425,-4040.21052947,0.00011,2]
[340667459,1729619443169,-6582.8763,0.00011,2]
[340667460,1729619443200,-925.11679803,0.00011,2]
[340667461,1729619443211,-497.90396752,0.00011,2]
[340667463,1729619443868,-24416.61941354,0.00011,2]
[340667464,1729619443879,-57966.03426995,0.00011,2]
[340667465,1729619443890,-367.94529826,0.00011,2]
[340667466,1729619443901,-4053.96,0.00011,2]
[340667467,1729619444074,-1724.74942244,0.00011,2]
[340667468,1729619444086,-1876.20470413,0.00011,2]
[340667469,1729619446255,-3177.70664,0.00011,2]
[340667470,1729619446420,-31615.85047708,0.00011,2]
[340667482,1729619914264,250.0,0.0001,2]
[340667484,1729620338128,-168.669139,0.00010645,2]
[340667485,1729620338150,-150.0,0.00010699,2]
[340667486,1729620338171,-82.8017457,0.000107,2]
[340667487,1729620351105,-879.8485543,0.000107,2]
[340667488,1729620351126,-275.0069261,0.000107,2]
[340667489,1729620360896,336.89,9.462e-05,2]
[340667490,1729620601048,335.96817439,0.00025,120]
[340667491,1729620601072,124964.03182561,0.00025,120]
[340667499,1729620632293,-300.0,0.00010486,2]
[340667501,1729620632302,-1618.86696003,0.00010487,2]
[340667504,1729620632318,-689.58642,0.00010487,2]
[340667506,1729620632329,-980.23063339,0.00010487,2]
[340667509,1729620632344,-5599.02414876,0.00010487,2]
[340667510,1729620632355,-3576.97871244,0.00010487,2]
[340667511,1729620632366,-4477.92071747,0.00010487,2]
[340667512,1729620632376,-6957.39240791,0.00010487,2]
[340667513,1729620632385,-102.18406069,0.00010699,2]
[340667514,1729620632401,-47.81593931,0.00010699,2]
[340667515,1729620632411,-591.41248039,0.000107,2]
[340667516,1729620632422,-2135.8388,0.000107,2]
[340667517,1729620632433,-2205.26979351,0.000107,2]
[340667518,1729620632442,-4857.2465,0.000107,2]
[340667519,1729620632451,-1345.7319,0.000107,2]
[340667520,1729620632461,-1293.4225,0.000107,2]
[340667521,1729620632470,-167.432,0.000107,2]
[340667522,1729620632479,-683.58740609,0.000107,2]
[340667523,1729620632490,-241.71439391,0.000107,2]
[340667524,1729620632499,-948.3661,0.000107,2]
[340667525,1729620632510,-502.64,0.00010712,2]
[340667526,1729620632519,-907.27,0.00010754,2]
[340667527,1729620632530,-4097.65,0.00010789,2]
[340667528,1729620632539,-433.2501,0.000108,2]
[340667529,1729620632548,-3766.3612,0.000108,2]
[340667530,1729620632557,-120371.23024082,0.000108,2]
[340667531,1729620632568,-5653.0,0.000108,2]
[340667532,1729620632579,-118975.76975918,0.000108,2]
[340667533,1729620632588,-6795.8341,0.000108,2]
[340667534,1729620632597,-77801.46674099,0.000108,2]
[340667535,1729620632608,-544.02,0.000108,2]
[340667536,1729620632620,-6822.66290055,0.000108,2]
[340667537,1729620632631,-324.2343219,0.000108,2]
[340667538,1729620632642,-14507.61603656,0.000108,2]
[340667539,1729620632651,-1888.89,0.00010867,2]
[340667540,1729620632660,-13894.2037997,0.00010899,2]
[340667541,1729620632670,-34454.1671,0.000109,2]
[340667542,1729620632680,-960.12306372,0.000109,2]
[340667543,1729620632691,-39.87693628,0.000109,2]
[340667544,1729620632701,-179.5836,0.000109,2]
[340667545,1729620632710,-158.34545894,0.000109,2]
[340667546,1729620632719,-176.4163494,0.000109,2]
[340667548,1729620632728,-174.98084668,0.000109,2]
[340667550,1729620632737,-171.73010905,0.000109,2]
[340667552,1729620632746,-200.23831791,0.00010945,2]
[340667553,1729620632755,-160.5019764,0.00010958,2]
[340667555,1729620632764,-6862.11,0.00010958,2]
[340667557,1729620632776,-499.99,0.00010958,2]
[340667559,1729620632787,-1500.0,0.00010959,2]
[340667560,1729620632796,-250.0,0.00010959,2]
[340667561,1729620632805,-489.28,0.00010973,2]
[340667562,1729620632814,-321.89,0.00010973,2]
[340667563,1729620632823,-500.0,0.00010973,2]
[340667564,1729620632834,-203.65752458,0.00010973,2]
[340667565,1729620632844,-150.0,0.00010982,2]
[340667566,1729620632853,-250.0,0.00010982,2]
[340667567,1729620632863,-764.02,0.00010987,2]
[340667568,1729620632872,-299.99,0.00010987,2]
[340667569,1729620632881,-2531.19,0.00010987,2]
[340667570,1729620632890,-174.073,0.0001099,2]
[340667571,1729620632899,-208.39,0.00010999,2]
[340667572,1729620632909,-343.43769694,0.00010999,2]
[340667573,1729620632918,-13603.73900763,0.00011,2]
[340667574,1729620632931,-13256.19999928,0.00011,2]
[340667575,1729620632942,-302.14414535,0.00011,2]
[340667576,1729620632953,-1091.26357004,0.00011,2]
[340667577,1729620632964,-4057.61514411,0.00011,2]
[340667578,1729620632976,-603.03497768,0.00011,2]
[340667579,1729620632987,-765.29022052,0.00011,2]
[340667581,1729620638390,-1000.0,0.000107,2]
[340667583,1729620638403,-1599.21665465,0.000107,2]
[340667585,1729620638491,-544.61761896,0.000107,2]
[340667586,1729620638504,-2263.85176697,0.000107,2]
[340667587,1729620638515,-445.42957939,0.000107,2]
[340667588,1729620638531,-343.05,0.000107,2]
[340667589,1729620638615,-539.29652978,0.000107,2]
[340667590,1729620638627,-603.15285,0.000107,2]
[340667591,1729620638638,-410.82807031,0.000107,2]
[340667592,1729620638649,-1018.16644036,0.000107,2]
[340667593,1729620638660,-736.91457578,0.000107,2]
[340667594,1729620638671,-12843.9166138,0.000107,2]
[340667595,1729620638680,-37143.84429434,0.00011,2]
[340667596,1729620638692,-19453.41639563,0.00011,2]
[340667597,1729620638735,-670.91304256,0.00011,2]
[340667599,1729620640580,-1040.26083,0.00011,2]
[340667600,1729620640591,-1822.53339675,0.00011,2]
[340667601,1729620640603,-822.93132927,0.00011,2]
[340667602,1729620640615,-2249.20404294,0.00011,2]
[340667603,1729620640627,-2100.1425,0.00011,2]
[340667604,1729620640639,-2004.61026675,0.00011,2]
[340667643,1729620643433,-7832.85836666,0.00011,2]
[340667644,1729620643606,-0.49768817,0.00011,2]
[340667645,1729620644070,-428.8894702,0.00011,2]
[340667646,1729620646426,-55063.73631687,0.00011,2]
[340667647,1729620646554,-17207.21582048,0.00011,2]
[340667648,1729620646578,-9245.01867316,0.00011,2]
[340667651,1729621138466,-1000.0,0.000107,2]
[340667652,1729621519586,658.421971,9e-05,2]
[340667653,1729621529570,19604.49010051,0.000101,2]
[340667654,1729621679560,1400.4854188,0.0001,2]
[340667655,1729621721026,250.0,0.0001,2]
[340667677,1729621831571,-150.0,0.0001077,2]
[340667678,1729621831580,-394.551,0.0001078,2]
[340667679,1729621831589,-25157.63955189,0.0001088,2]
[340667680,1729621831598,-455.104863,0.000109,2]
[340667681,1729621831608,-13205.94510976,0.000109,2]
[340667682,1729621831618,-171.73010904,0.000109,2]
[340667683,1729621831629,-362.8546912,0.000109,2]
[340667684,1729621831640,-500.0,0.00010973,2]
[340667685,1729621831650,-240.40638786,0.00010999,2]
[340667686,1729621831659,-174.073,0.00010999,2]
[340667687,1729621831669,-22150.9262442,0.00011,2]
[340667688,1729621831720,-27009.78017579,0.00011,2]
[340667689,1729621831807,-1460.46853907,0.00011,2]
[340667695,1729621837839,-129.08199606,0.00011,2]
[340667699,1729621839677,-5671.15406017,0.00011,2]
[340667700,1729621839688,-588.78572564,0.00011,2]
[340667701,1729621839699,-3710.134997,0.00011,2]
[340667702,1729621839778,-57016.62334368,0.00011,2]
[340667703,1729621839793,-2710.49021726,0.00011,2]
[340667704,1729621839810,-2839.5,0.00011,2]
[340667712,1729621842645,-455.770005,0.00011,2]
[340667713,1729621842657,-283.2200001,0.00011,2]
[340667714,1729621842669,-385.93653,0.00011,2]
[340667715,1729621842681,-264.85,0.00011,2]
[340667716,1729621842754,-5997.40570346,0.00011,2]
[340667717,1729621842769,-3074.83061952,0.00011,2]
[340667718,1729621842793,-20150.10000092,0.00011,2]
[340667719,1729621842810,-16733.5706032,0.00011,2]
[340667720,1729621842854,-1116.83907016,0.00011,2]
[340667721,1729621842865,-1323.44216416,0.00011,2]
[340667774,1729622005577,430.74,9.97e-05,2]
[340667804,1729622639321,459.79,8.752e-05,2]
[340667805,1729622647345,150.0,8.708e-05,2]
[340667806,1729622849758,216.39,0.00010372,2]
[340667807,1729622923334,200.0,0.00010157,2]
[340667808,1729622937473,159.51,0.00010256,2]
[340667809,1729622989839,150.43,0.00010168,2]
[340667810,1729622995485,250.0,0.00010195,2]
[340667811,1729622997940,195.92,0.00010262,2]
[340667812,1729623022835,1254.07,0.0001033,2]
[340667815,1729623031721,-621.77146932,0.00010504,2]
[340667816,1729623031733,-378.22853068,0.00010504,2]
[340667817,1729623031743,-300.0,0.00010512,2]
[340667818,1729623031753,-421.74390776,0.00010513,2]
[340667819,1729623031786,-1074.38609224,0.00010513,2]
[340667820,1729623031796,-2525.61390776,0.00010513,2]
[340667821,1729623031808,-555.249,0.00010513,2]
[340667822,1729623031819,-1249.78872132,0.00010513,2]
[340667823,1729623031830,-431.15035491,0.00010513,2]
[340667824,1729623031841,-393.3952172,0.00010513,2]
[340667825,1729623031853,-3186.53480063,0.00010513,2]
[340667826,1729623031865,-6278.08455896,0.00010513,2]
[340667827,1729623031877,-270.54903608,0.00010513,2]
[340667828,1729623031887,-399.70496985,0.00010513,2]
[340667829,1729623031898,-1080.79234568,0.00010513,2]
[340667830,1729623031910,-1028.79,0.00010513,2]
[340667831,1729623031925,-752.17210597,0.00010513,2]
[340667832,1729623031936,-1112.92161359,0.00010513,2]
[340667833,1729623031948,-4635.25336805,0.00010513,2]
[340667834,1729623031957,-591.69,0.00010516,2]
[340667835,1729623031967,-1345.73785208,0.00010516,2]
[340667836,1729623031976,-150.0,0.00010577,2]
[340667837,1729623031986,-3011.64,0.00010578,2]
[340667838,1729623031996,-155.15,0.00010608,2]
[340667839,1729623032007,-181.47,0.00010608,2]
[340667840,1729623032017,-251.32,0.00010661,2]
[340667841,1729623032026,-250.0,0.00010669,2]
[340667842,1729623032036,-387.62,0.00010669,2]
[340667843,1729623032045,-499.99,0.00010669,2]
[340667844,1729623032054,-12261.24,0.00010673,2]
[340667846,1729623032064,-315.641,0.0001078,2]
[340667848,1729623032073,-722.71,0.000108,2]
[340667850,1729623032083,-11885.35059873,0.00010899,2]
[340667852,1729623032092,-1682.2527,0.000109,2]
[340667854,1729623032102,-971.2423,0.000109,2]
[340667856,1729623032112,-22367.65970274,0.000109,2]
[340667858,1729623032123,-1335.27392991,0.000109,2]
[340667860,1729623032135,-9669.50989184,0.000109,2]
[340667862,1729623032153,-492.07026838,0.000109,2]
[340667865,1729623032165,-29954.30071245,0.000109,2]
[340667867,1729623032176,-2772.84331179,0.000109,2]
[340667869,1729623032187,-814.99724662,0.000109,2]
[340667871,1729623032203,-378.25609224,0.000109,2]
[340667872,1729623032214,-4507.06363913,0.000109,2]
[340667873,1729623032225,-1902.48145893,0.000109,2]
[340667874,1729623032236,-7776.89948567,0.000109,2]
[340667875,1729623032247,-6246.33253183,0.000109,2]
[340667876,1729623032260,-695.13892783,0.000109,2]
[340667882,1729623037875,-380.10640382,0.000109,2]
[340667883,1729623038004,-9025.36819072,0.000109,2]
[340667884,1729623038016,-1210.15447479,0.000109,2]
[340667885,1729623038029,-967.67391066,0.000109,2]
[340667886,1729623038039,-6629.228122,0.000109,2]
[340667887,1729623038223,-21142.25759865,0.000109,2]
[340667889,1729623038233,-1104.0324,0.000109,2]
[340667890,1729623038242,-3220.776,0.000109,2]
[340667891,1729623038251,-999.99,0.000109,2]
[340667892,1729623038261,-299.99,0.000109,2]
[340667893,1729623038270,-202.7935973,0.000109,2]
[340667894,1729623038279,-171.73010904,0.000109,2]
[340667895,1729623038289,-203.61945008,0.000109,2]
[340667896,1729623038299,-606.34,0.00010959,2]
[340667897,1729623038308,-361.13,0.00010959,2]
[340667898,1729623038318,-497.90020039,0.00010973,2]
[340667899,1729623038327,-500.0,0.00010973,2]
[340667900,1729623038339,-500.0,0.00010973,2]
[340667901,1729623038348,-192.68175842,0.0001099,2]
[340667902,1729623038357,-192.68175842,0.0001099,2]
[340667903,1729623038366,-192.68175842,0.0001099,2]
[340667904,1729623038376,-260.29734631,0.00010999,2]
[340667905,1729623038385,-3682.67103011,0.00010999,2]
[340667906,1729623038395,-500.0,0.00010999,2]
[340667907,1729623038404,-500.68734814,0.00010999,2]
[340667908,1729623038413,-198.1744672,0.00010999,2]
[340667909,1729623038424,-500.0,0.00010999,2]
[340667910,1729623038433,-500.0,0.00010999,2]
[340667911,1729623038442,-157.18290822,0.00010999,2]
[340667912,1729623038451,-500.0,0.00010999,2]
[340667913,1729623038460,-500.0,0.00010999,2]
[340667914,1729623038470,-500.0,0.00010999,2]
[340667915,1729623038479,-500.0,0.00010999,2]
[340667916,1729623038489,-500.0,0.00010999,2]
[340667917,1729623038498,-500.0,0.00010999,2]
[340667918,1729623038508,-500.0,0.00010999,2]
[340667920,1729623038518,-500.0,0.00010999,2]